fUSD/lending_fUSD_20260527
["ID","MTS","AMOUNT","RATE_DAILY","PERIOD"]
[423117387,1779863432000,-200.0,0.00031009,2]
[423117385,1779863432000,-1493.93,0.00030646,120]
[423117379,1779863432000,-170.67,0.00029079,2]
[423117426,1779863433000,-500.0,0.00034451,7]
[423117420,1779863433000,-47.27154759,0.00034451,7]
[423117422,1779863433000,-500.0,0.00034451,7]
[423117425,1779863433000,-500.0,0.00034451,7]
[423117437,1779863433000,-500.0,0.00034451,7]
[423117423,1779863433000,-500.0,0.00034451,7]
[423117429,1779863433000,-500.0,0.00034451,7]
[423117428,1779863433000,-500.0,0.00034451,7]
[423117439,1779863433000,-500.0,0.00034451,7]
[423117432,1779863433000,-500.0,0.00034451,7]
[423117434,1779863433000,-500.0,0.00034451,7]
[423117424,1779863433000,-500.0,0.00034451,7]
[423117430,1779863433000,-500.0,0.00034451,7]
[423117421,1779863433000,-452.72845241,0.00034451,7]
[423117413,1779863433000,-500.0,0.00034451,7]
[423117417,1779863433000,-500.0,0.00034451,7]
[423117419,1779863433000,-500.0,0.00034451,7]
[423117416,1779863433000,-500.0,0.00034451,7]
[423117418,1779863433000,-500.0,0.00034451,7]
[423117415,1779863433000,-500.0,0.00034451,7]
[423117414,1779863433000,-500.0,0.00034451,7]
[423117412,1779863433000,-500.0,0.00034451,7]
[423117410,1779863433000,-500.0,0.00034451,7]
[423117411,1779863433000,-500.0,0.00034451,7]
[423117409,1779863433000,-500.0,0.00034451,7]
[423117407,1779863433000,-500.0,0.00034451,7]
[423117408,1779863433000,-500.0,0.00034451,7]
[423117406,1779863433000,-200.0,0.00034374,15]
[423117433,1779863433000,-500.0,0.00034451,7]
[423117427,1779863433000,-559.73887875,0.00034451,7]
[423117431,1779863433000,-500.0,0.00034451,7]
[423117469,1779863433000,-10136.12638804,0.00035367,2]
[423117438,1779863433000,-500.0,0.00034451,7]
[423117435,1779863433000,-500.0,0.00034451,7]
[423117468,1779863433000,-284.84224785,0.00035118,2]
[423117465,1779863433000,-150.0,0.00035118,2]
[423117466,1779863433000,-150.0,0.00035118,2]
[423117467,1779863433000,-150.0,0.00035118,2]
[423117462,1779863433000,-1493.93,0.00034477,120]
[423117464,1779863433000,-666.74799947,0.0003488,120]
[423117461,1779863433000,-7743.03246427,0.00034452,2]
[423117459,1779863433000,-500.0,0.00034451,7]
[423117460,1779863433000,-20946.39947853,0.00034452,2]
[423117457,1779863433000,-500.0,0.00034451,7]
[423117458,1779863433000,-500.0,0.00034451,7]
[423117455,1779863433000,-500.0,0.00034451,7]
[423117456,1779863433000,-500.0,0.00034451,7]
[423117454,1779863433000,-500.0,0.00034451,7]
[423117463,1779863433000,-5000.0,0.00034672,2]
[423117451,1779863433000,-500.0,0.00034451,7]
[423117446,1779863433000,-500.0,0.00034451,7]
[423117441,1779863433000,-500.0,0.00034451,7]
[423117443,1779863433000,-500.0,0.00034451,7]
[423117440,1779863433000,-500.0,0.00034451,7]
[423117453,1779863433000,-500.0,0.00034451,7]
[423117445,1779863433000,-500.0,0.00034451,7]
[423117442,1779863433000,-500.0,0.00034451,7]
[423117450,1779863433000,-500.0,0.00034451,7]
[423117448,1779863433000,-500.0,0.00034451,7]
[423117452,1779863433000,-500.0,0.00034451,7]
[423117447,1779863433000,-500.0,0.00034451,7]
[423117449,1779863433000,-500.0,0.00034451,7]
[423117444,1779863433000,-500.0,0.00034451,7]
[423117436,1779863433000,-500.0,0.00034451,7]
[423117484,1779863438000,-268.65670572,0.00035389,2]
[423117485,1779863438000,-300.0,0.00035389,2]
[423117487,1779863438000,-528.48327171,0.00035389,2]
[423117481,1779863438000,-300.0,0.00035389,2]
[423117483,1779863438000,-31.34329428,0.00035389,2]
[423117482,1779863438000,-605.31118564,0.00035389,2]
[423117480,1779863438000,-300.0,0.00035389,2]
[423117473,1779863438000,-163.78317572,0.000261,2]
[423117479,1779863438000,-493.38669858,0.00035389,2]
[423117477,1779863438000,-217.2952278,0.00035367,2]
[423117476,1779863438000,-1000.0,0.00035367,2]
[423117474,1779863438000,-163.78317572,0.000263,2]
[423117475,1779863438000,-11442.16328614,0.00035367,2]
[423117471,1779863438000,-163.78317572,0.000256,2]
[423117472,1779863438000,-163.78317572,0.000258,2]
[423117488,1779863438000,-644.3035266,0.00035389,2]
[423117478,1779863438000,-300.0,0.00035389,2]
[423117489,1779863438000,-424.09810692,0.00035389,2]
[423117486,1779863438000,-300.0,0.00035389,2]
[423117491,1779863438000,-727.07827244,0.00035389,2]
[423117490,1779863438000,-894.65434383,0.00035389,2]
[423117509,1779863438000,-41.54594725,0.00035389,2]
[423117504,1779863438000,-950.32029804,0.00035389,2]
[423117507,1779863438000,-300.0,0.00035389,2]
[423117505,1779863438000,-300.09384644,0.00035389,2]
[423117503,1779863438000,-865.6208675,0.00035389,2]
[423117501,1779863438000,-300.0,0.00035389,2]
[423117502,1779863438000,-300.0,0.00035389,2]
[423117508,1779863438000,-258.45405275,0.00035389,2]
[423117497,1779863438000,-300.0,0.00035389,2]
[423117494,1779863438000,-300.99795142,0.00035389,2]
[423117496,1779863438000,-300.0,0.00035389,2]
[423117495,1779863438000,-300.0,0.00035389,2]
[423117500,1779863438000,-527.62572404,0.00035389,2]
[423117498,1779863438000,-1263.96825586,0.00035389,2]
[423117493,1779863438000,-300.0,0.00035389,2]
[423117499,1779863438000,-344.45437934,0.00035389,2]
[423117492,1779863438000,-302.21937029,0.00035389,2]
[423117534,1779863439000,-300.0,0.00035389,2]
[423117552,1779863439000,-528.48327171,0.00035389,2]
[423117549,1779863439000,-300.0,0.00035389,2]
[423117539,1779863439000,-300.0,0.00035389,2]
[423117544,1779863439000,-605.31118564,0.00035389,2]
[423117557,1779863439000,-894.65434383,0.00035389,2]
[423117555,1779863439000,-1068.40163352,0.00035389,2]
[423117536,1779863439000,-472.7061761,0.00035389,2]
[423117548,1779863439000,-300.0,0.00035389,2]
[423117538,1779863439000,-493.38669858,0.00035389,2]
[423117542,1779863439000,-300.0,0.00035389,2]
[423117561,1779863439000,-422.31963966,0.00035389,2]
[423117559,1779863439000,-727.07827244,0.00035389,2]
[423117532,1779863439000,-300.0,0.00035389,2]
[423117546,1779863439000,-380.84476438,0.00035389,2]
[423117528,1779863439000,-1096.2926835,0.00035389,2]
[423117516,1779863439000,-578.28315025,0.00035389,2]
[423117527,1779863439000,-300.0,0.00035389,2]
[423117560,1779863439000,-302.21937029,0.00035389,2]
[423117513,1779863439000,-300.0,0.00035389,2]
[423117514,1779863439000,-464.48677942,0.00035389,2]
[423117511,1779863439000,-310.02493426,0.00035389,2]
[423117510,1779863439000,-1148.83589152,0.00035389,2]
[423117512,1779863439000,-594.79850986,0.00035389,2]
[423117515,1779863439000,-300.0,0.00035389,2]
[423117517,1779863439000,-452.52893397,0.00035389,2]
[423117518,1779863439000,-300.0,0.00035389,2]
[423117520,1779863439000,-300.0,0.00035389,2]
[423117522,1779863439000,-484.76763572,0.00035389,2]
[423117519,1779863439000,-300.0,0.00035389,2]
[423117529,1779863439000,-300.0,0.00035389,2]
[423117530,1779863439000,-300.0,0.00035389,2]
[423117525,1779863439000,-555.46191996,0.00035389,2]
[423117524,1779863439000,-310.28230408,0.00035389,2]
[423117578,1779863439000,-865.6208675,0.00035389,2]
[423117568,1779863439000,-300.0,0.00035389,2]
[423117581,1779863439000,-950.32029804,0.00035389,2]
[423117612,1779863439000,-484.76763572,0.00035389,2]
[423117620,1779863439000,-300.0,0.00035389,2]
[423117626,1779863439000,-300.0,0.00035389,2]
[423117630,1779863439000,-500.0,0.00035735,2]
[423117632,1779863439000,-175.71,0.00035852,120]
[423117622,1779863439000,-578.16106581,0.00035389,2]
[423117616,1779863439000,-300.0,0.00035389,2]
[423117624,1779863439000,-501.91711006,0.00035389,2]
[423117614,1779863439000,-310.28230408,0.00035389,2]
[423117628,1779863439000,-191.66,0.0003566,120]
[423117634,1779863439000,-1960.13952569,0.00036344,2]
[423117636,1779863439000,-4301.46175625,0.00036546,2]
[423117641,1779863439000,-166.68,0.00036791,2]
[423117639,1779863439000,-152.0,0.00036676,5]
[423117573,1779863439000,-1263.96825586,0.00035389,2]
[423117607,1779863439000,-300.0,0.00035389,2]
[423117610,1779863439000,-300.0,0.00035389,2]
[423117618,1779863439000,-1096.2926835,0.00035389,2]
[423117595,1779863439000,-300.0,0.00035389,2]
[423117643,1779863439000,-11597.86971411,0.00037065,2]
[423117570,1779863439000,-300.0,0.00035389,2]
[423117564,1779863439000,-300.99795142,0.00035389,2]
[423117566,1779863439000,-300.0,0.00035389,2]
[423117603,1779863439000,-452.52893397,0.00035389,2]
[423117563,1779863439000,-300.0,0.00035389,2]
[423117577,1779863439000,-527.62572404,0.00035389,2]
[423117584,1779863439000,-1148.83589152,0.00035389,2]
[423117575,1779863439000,-344.45437934,0.00035389,2]
[423117599,1779863439000,-448.30463692,0.00035389,2]
[423117590,1779863439000,-310.02493426,0.00035389,2]
[423117605,1779863439000,-300.0,0.00035389,2]
[423117592,1779863439000,-594.79850986,0.00035389,2]
[423117597,1779863439000,-464.48677942,0.00035389,2]
[423117601,1779863439000,-578.28315025,0.00035389,2]
[423117583,1779863439000,-300.09384644,0.00035389,2]
[423117685,1779863440000,-596.298,0.00037776,30]
[423117680,1779863440000,-4564.6971657,0.00037065,2]
[423117682,1779863440000,-231.34,0.00037198,120]
[423117679,1779863440000,-493.38669858,0.00035389,2]
[423117681,1779863440000,-166.68,0.00037104,2]
[423117683,1779863440000,-220.92493957,0.000372,120]
[423117684,1779863440000,-533.77967355,0.00037776,30]
[423117687,1779863440000,-1573.41116761,0.00037776,30]
[423117686,1779863440000,-418.35120108,0.00037776,30]
[423117694,1779863440000,-2683.11088199,0.00038247,2]
[423117688,1779863440000,-300.0,0.00035389,2]
[423117690,1779863440000,-280.98021163,0.000379,120]
[423117692,1779863440000,-1036.20967314,0.00038223,2]
[423117693,1779863440000,-164.0,0.00038244,11]
[423117691,1779863440000,-1802.16,0.00038067,2]
[423117695,1779863440000,-500.0,0.00038276,15]
[423117698,1779863440000,-505.20251637,0.00038356,120]
[423117696,1779863440000,-401.0,0.00038276,15]
[423117697,1779863440000,-1493.93,0.00038307,120]
[423117689,1779863440000,-3259.68565776,0.00037776,30]
[423117708,1779863441000,-184.44261276,0.00038678,30]
[423117714,1779863441000,-100300.46967395,0.00039,10]
[423117712,1779863441000,-2683.11088198,0.0003895,2]
[423117715,1779863441000,-200.0,0.00039011,20]
[423117728,1779863441000,-186.503884,0.000391,2]
[423117727,1779863441000,-151.0,0.000391,2]
[423117725,1779863441000,-151.0,0.000391,2]
[423117709,1779863441000,-233.0,0.000388,31]
[423117721,1779863441000,-151.0,0.000391,2]
[423117717,1779863441000,-3435.00000197,0.00039039,120]
[423117711,1779863441000,-200.2,0.000389,120]
[423117705,1779863441000,-12509.70392112,0.0003864,30]
[423117713,1779863441000,-200.0,0.00038998,20]
[423117706,1779863441000,-22753.56817888,0.0003864,30]
[423117707,1779863441000,-2683.11088198,0.00038669,2]
[423117703,1779863441000,-795.18399803,0.0003863,10]
[423117704,1779863441000,-1830.02600197,0.0003863,10]
[423117702,1779863441000,-2500.0,0.0003854,2]
[423117700,1779863441000,-2683.11088198,0.00038388,2]
[423117701,1779863441000,-2683.11088198,0.00038528,2]
[423117699,1779863441000,-230.92867865,0.00038356,2]
[423117723,1779863441000,-151.0,0.000391,2]
[423117710,1779863441000,-2683.11088198,0.00038809,2]
[423117719,1779863441000,-2683.11088198,0.0003909,2]
[423117726,1779863441000,-151.0,0.000391,2]
[423117747,1779863441000,-248.55150322,0.00039232,15]
[423117750,1779863441000,-500.0,0.00039232,15]
[423117754,1779863441000,-38584.96053876,0.00039233,2]
[423117753,1779863441000,-4301.46175625,0.00039233,2]
[423117751,1779863441000,-560.0180577,0.00039232,15]
[423117752,1779863441000,-152.0,0.00039232,5]
[423117743,1779863441000,-500.0,0.00039232,15]
[423117745,1779863441000,-500.0,0.00039232,15]
[423117748,1779863441000,-208.35323601,0.00039232,15]
[423117749,1779863441000,-500.0,0.00039232,15]
[423117736,1779863441000,-214.88671183,0.00039195,120]
[423117739,1779863441000,-2683.11088198,0.00039231,2]
[423117716,1779863441000,-200.0,0.00039016,20]
[423117730,1779863441000,-380.0,0.00039169,2]
[423117741,1779863441000,-500.0,0.00039232,15]
[423117738,1779863441000,-516.0,0.000392,2]
[423117732,1779863441000,-4389.2652235,0.00039188,120]
[423117731,1779863441000,-206.12811765,0.00039172,120]
[423117729,1779863441000,-5000.0,0.00039133,120]
[423117724,1779863441000,-151.0,0.000391,2]
[423117722,1779863441000,-151.0,0.000391,2]
[423117718,1779863441000,-380.0,0.00039066,2]
[423117720,1779863441000,-380.0,0.000391,2]
[423117734,1779863441000,-1933.98040651,0.00039195,120]
[423117760,1779863443000,-300.0,0.00035389,2]
[423117762,1779863443000,-132.74956241,0.00039233,2]
[423117763,1779863443000,-318.33649037,0.00039233,2]
[423117761,1779863443000,-690.80644876,0.00038223,2]
[423117804,1779863444000,-522.81605,0.00039331,30]
[423117783,1779863444000,-522.816046,0.00039331,30]
[423117793,1779863444000,-522.816046,0.00039331,30]
[423117792,1779863444000,-522.816046,0.00039331,30]
[423117794,1779863444000,-151.0,0.00039331,30]
[423117795,1779863444000,-522.816046,0.00039331,30]
[423117797,1779863444000,-522.816046,0.00039331,30]
[423117796,1779863444000,-151.0,0.00039331,30]
[423117808,1779863444000,-685.398029,0.00039331,30]
[423117831,1779863444000,-151.0,0.00039331,30]
[423117810,1779863444000,-268.038112,0.00039331,30]
[423117806,1779863444000,-685.398029,0.00039331,30]
[423117799,1779863444000,-151.0,0.00039331,30]
[423117800,1779863444000,-522.816046,0.00039331,30]
[423117802,1779863444000,-261.34497,0.00039331,30]
[423117812,1779863444000,-685.398029,0.00039331,30]
[423117818,1779863444000,-268.038112,0.00039331,30]
[423117816,1779863444000,-685.398029,0.00039331,30]
[423117820,1779863444000,-685.398029,0.00039331,30]
[423117822,1779863444000,-151.0,0.00039331,30]
[423117790,1779863444000,-522.816046,0.00039331,30]
[423117814,1779863444000,-268.038112,0.00039331,30]
[423117791,1779863444000,-522.816046,0.00039331,30]
[423117774,1779863444000,-151.0,0.00039331,30]
[423117789,1779863444000,-522.816046,0.00039331,30]
[423117766,1779863444000,-202.11123627,0.00039321,2]
[423117765,1779863444000,-602.0991741,0.00039259,2]
[423117764,1779863444000,-188852.38840846,0.00039233,2]
[423117767,1779863444000,-231.13,0.00039326,30]
[423117768,1779863444000,-21915.83881136,0.00039331,28]
[423117770,1779863444000,-151.0,0.00039331,30]
[423117777,1779863444000,-522.816046,0.00039331,30]
[423117771,1779863444000,-151.0,0.00039331,30]
[423117779,1779863444000,-522.816046,0.00039331,30]
[423117776,1779863444000,-151.0,0.00039331,30]
[423117788,1779863444000,-522.816046,0.00039331,30]
[423117769,1779863444000,-151.0,0.00039331,30]
[423117780,1779863444000,-522.816046,0.00039331,30]
[423117773,1779863444000,-151.0,0.00039331,30]
[423117775,1779863444000,-151.0,0.00039331,30]
[423117778,1779863444000,-239.886895,0.00039331,30]
[423117781,1779863444000,-522.816046,0.00039331,30]
[423117782,1779863444000,-522.816046,0.00039331,30]
[423117785,1779863444000,-522.816046,0.00039331,30]
[423117784,1779863444000,-522.816046,0.00039331,30]
[423117786,1779863444000,-522.816046,0.00039331,30]
[423117787,1779863444000,-522.816046,0.00039331,30]
[423117772,1779863444000,-151.0,0.00039331,30]
[423117824,1779863444000,-268.038112,0.00039331,30]
[423117870,1779863444000,-685.398029,0.00039331,30]
[423117828,1779863444000,-268.038112,0.00039331,30]
[423117886,1779863444000,-151.0,0.00039331,30]
[423117876,1779863444000,-685.398029,0.00039331,30]
[423117880,1779863444000,-151.0,0.00039331,30]
[423117878,1779863444000,-268.038112,0.00039331,30]
[423117892,1779863444000,-268.038112,0.00039331,30]
[423117891,1779863444000,-342.525442,0.00039331,30]
[423117894,1779863444000,-151.0,0.00039331,30]
[423117908,1779863444000,-1059.161696,0.00039331,30]
[423117910,1779863444000,-151.0,0.00039331,30]
[423117906,1779863444000,-342.525442,0.00039331,30]
[423117888,1779863444000,-685.398029,0.00039331,30]
[423117902,1779863444000,-268.038112,0.00039331,30]
[423117914,1779863444000,-685.398029,0.00039331,30]
[423117898,1779863444000,-342.525442,0.00039331,30]
[423117916,1779863444000,-268.038112,0.00039331,30]
[423117920,1779863444000,-376.835638,0.00039331,30]
[423117922,1779863444000,-834.062765,0.00039331,30]
[423117900,1779863444000,-151.0,0.00039331,30]
[423117918,1779863444000,-1059.161696,0.00039331,30]
[423117904,1779863444000,-685.398029,0.00039331,30]
[423117924,1779863444000,-342.525442,0.00039331,30]
[423117830,1779863444000,-151.0,0.00039331,30]
[423117912,1779863444000,-342.525442,0.00039331,30]
[423117884,1779863444000,-268.038112,0.00039331,30]
[423117896,1779863444000,-685.398029,0.00039331,30]
[423117874,1779863444000,-151.0,0.00039331,30]
[423117826,1779863444000,-685.398029,0.00039331,30]
[423117882,1779863444000,-685.398029,0.00039331,30]
[423117840,1779863444000,-151.0,0.00039331,30]
[423117833,1779863444000,-685.398029,0.00039331,30]
[423117838,1779863444000,-151.0,0.00039331,30]
[423117836,1779863444000,-268.038112,0.00039331,30]
[423117842,1779863444000,-151.0,0.00039331,30]
[423117844,1779863444000,-685.398029,0.00039331,30]
[423117846,1779863444000,-268.038112,0.00039331,30]
[423117847,1779863444000,-151.0,0.00039331,30]
[423117849,1779863444000,-685.398029,0.00039331,30]
[423117834,1779863444000,-151.0,0.00039331,30]
[423117861,1779863444000,-268.038112,0.00039331,30]
[423117868,1779863444000,-151.0,0.00039331,30]
[423117855,1779863444000,-151.0,0.00039331,30]
[423117865,1779863444000,-685.398029,0.00039331,30]
[423117867,1779863444000,-268.038112,0.00039331,30]
[423117863,1779863444000,-151.0,0.00039331,30]
[423117872,1779863444000,-268.038112,0.00039331,30]
[423117853,1779863444000,-268.038112,0.00039331,30]
[423117859,1779863444000,-685.398029,0.00039331,30]
[423117851,1779863444000,-156.514458,0.00039331,30]
[423117857,1779863444000,-236.015358,0.00039331,30]
[423118009,1779863445000,-1059.161696,0.00039331,30]
[423118003,1779863445000,-200.043576,0.00039331,30]
[423118001,1779863445000,-834.062765,0.00039331,30]
[423118011,1779863445000,-834.062765,0.00039331,30]
[423118019,1779863445000,-376.835638,0.00039331,30]
[423117997,1779863445000,-1059.161696,0.00039331,30]
[423118007,1779863445000,-342.525442,0.00039331,30]
[423118024,1779863445000,-1059.161696,0.00039331,30]
[423118015,1779863445000,-200.043576,0.00039331,30]
[423118005,1779863445000,-376.835638,0.00039331,30]
[423117995,1779863445000,-342.525442,0.00039331,30]
[423118022,1779863445000,-342.525442,0.00039331,30]
[423117998,1779863445000,-151.0,0.00039331,30]
[423118013,1779863445000,-151.0,0.00039331,30]
[423118046,1779863445000,-376.835638,0.00039331,30]
[423118026,1779863445000,-151.0,0.00039331,30]
[423118036,1779863445000,-1059.161696,0.00039331,30]
[423118040,1779863445000,-834.062765,0.00039331,30]
[423118042,1779863445000,-200.043576,0.00039331,30]
[423118030,1779863445000,-151.0,0.00039331,30]
[423118032,1779863445000,-376.835638,0.00039331,30]
[423118028,1779863445000,-834.062765,0.00039331,30]
[423118038,1779863445000,-151.0,0.00039331,30]
[423118034,1779863445000,-342.525442,0.00039331,30]
[423118048,1779863445000,-342.525442,0.00039331,30]
[423118044,1779863445000,-151.0,0.00039331,30]
[423118050,1779863445000,-151.0,0.00039331,30]
[423117993,1779863445000,-376.835638,0.00039331,30]
[423118017,1779863445000,-151.0,0.00039331,30]
[423117982,1779863445000,-342.525442,0.00039331,30]
[423117935,1779863445000,-834.062765,0.00039331,30]
[423117975,1779863445000,-834.062765,0.00039331,30]
[423118052,1779863445000,-1059.161696,0.00039331,30]
[423117925,1779863445000,-685.398029,0.00039331,30]
[423117930,1779863445000,-1059.161696,0.00039331,30]
[423117933,1779863445000,-342.525442,0.00039331,30]
[423117931,1779863445000,-376.835638,0.00039331,30]
[423117927,1779863445000,-268.038112,0.00039331,30]
[423117943,1779863445000,-376.835638,0.00039331,30]
[423117945,1779863445000,-834.062765,0.00039331,30]
[423117939,1779863445000,-1059.161696,0.00039331,30]
[423117941,1779863445000,-685.398036,0.00039331,30]
[423117937,1779863445000,-268.038112,0.00039331,30]
[423117947,1779863445000,-1059.161696,0.00039331,30]
[423117949,1779863445000,-342.525442,0.00039331,30]
[423117979,1779863445000,-376.835638,0.00039331,30]
[423117953,1779863445000,-376.835638,0.00039331,30]
[423117960,1779863445000,-342.525442,0.00039331,30]
[423117969,1779863445000,-376.835638,0.00039331,30]
[423117970,1779863445000,-342.525442,0.00039331,30]
[423117965,1779863445000,-834.062765,0.00039331,30]
[423117967,1779863445000,-1059.161696,0.00039331,30]
[423117962,1779863445000,-268.038104,0.00039331,30]
[423117973,1779863445000,-1059.161696,0.00039331,30]
[423117984,1779863445000,-1059.161696,0.00039331,30]
[423117988,1779863445000,-834.062765,0.00039331,30]
[423117986,1779863445000,-151.0,0.00039331,30]
[423117977,1779863445000,-151.0,0.00039331,30]
[423117991,1779863445000,-151.0,0.00039331,30]
[423117981,1779863445000,-151.0,0.00039331,30]
[423117955,1779863445000,-151.0,0.00039331,30]
[423118053,1779863445000,-200.043576,0.00039331,30]
[423117951,1779863445000,-268.038112,0.00039331,30]
[423118069,1779863445000,-151.0,0.00039331,30]
[423118109,1779863445000,-376.835638,0.00039331,30]
[423118110,1779863445000,-834.062765,0.00039331,30]
[423118105,1779863445000,-376.835638,0.00039331,30]
[423118124,1779863445000,-219.619204,0.00039331,30]
[423118115,1779863445000,-200.043576,0.00039331,30]
[423118119,1779863445000,-834.062756,0.00039331,30]
[423118113,1779863445000,-376.835638,0.00039331,30]
[423118120,1779863445000,-200.043576,0.00039331,30]
[423118114,1779863445000,-834.062765,0.00039331,30]
[423118123,1779863445000,-200.043576,0.00039331,30]
[423118122,1779863445000,-219.619204,0.00039331,30]
[423118118,1779863445000,-200.043576,0.00039331,30]
[423118125,1779863445000,-200.043576,0.00039331,30]
[423118117,1779863445000,-834.062765,0.00039331,30]
[423118135,1779863445000,-200.043574,0.00039331,30]
[423118116,1779863445000,-376.835634,0.00039331,30]
[423118121,1779863445000,-200.043576,0.00039331,30]
[423118127,1779863445000,-219.619204,0.00039331,30]
[423118126,1779863445000,-151.0,0.00039331,30]
[423118130,1779863445000,-894.265434,0.00039331,30]
[423118138,1779863445000,-894.265434,0.00039331,30]
[423118137,1779863445000,-151.0,0.00039331,30]
[423118131,1779863445000,-200.043576,0.00039331,30]
[423118129,1779863445000,-151.0,0.00039331,30]
[423118133,1779863445000,-151.0,0.00039331,30]
[423118128,1779863445000,-200.043576,0.00039331,30]
[423118136,1779863445000,-219.619204,0.00039331,30]
[423118132,1779863445000,-219.619204,0.00039331,30]
[423118063,1779863445000,-1059.161696,0.00039331,30]
[423118107,1779863445000,-1059.161696,0.00039331,30]
[423118106,1779863445000,-834.062765,0.00039331,30]
[423118134,1779863445000,-894.265434,0.00039331,30]
[423118102,1779863445000,-834.062765,0.00039331,30]
[423118103,1779863445000,-1059.161696,0.00039331,30]
[423118071,1779863445000,-187.533906,0.00039331,30]
[423118059,1779863445000,-376.835638,0.00039331,30]
[423118055,1779863445000,-834.062765,0.00039331,30]
[423118073,1779863445000,-342.525442,0.00039331,30]
[423118065,1779863445000,-200.043576,0.00039331,30]
[423118072,1779863445000,-376.835638,0.00039331,30]
[423118067,1779863445000,-834.062765,0.00039331,30]
[423118061,1779863445000,-342.525442,0.00039331,30]
[423118087,1779863445000,-200.043576,0.00039331,30]
[423118079,1779863445000,-376.835638,0.00039331,30]
[423118074,1779863445000,-1059.161696,0.00039331,30]
[423118077,1779863445000,-151.0,0.00039331,30]
[423118091,1779863445000,-376.835638,0.00039331,30]
[423118057,1779863445000,-151.0,0.00039331,30]
[423118084,1779863445000,-834.062765,0.00039331,30]
[423118075,1779863445000,-200.043576,0.00039331,30]
[423118112,1779863445000,-200.043576,0.00039331,30]
[423118104,1779863445000,-200.043576,0.00039331,30]
[423118101,1779863445000,-342.525434,0.00039331,30]
[423118100,1779863445000,-376.835638,0.00039331,30]
[423118111,1779863445000,-1059.161686,0.00039331,30]
[423118108,1779863445000,-200.043576,0.00039331,30]
[423118085,1779863445000,-1059.161696,0.00039331,30]
[423118093,1779863445000,-342.525442,0.00039331,30]
[423118098,1779863445000,-834.062765,0.00039331,30]
[423118096,1779863445000,-1059.161696,0.00039331,30]
[423118099,1779863445000,-200.043576,0.00039331,30]
[423118081,1779863445000,-342.525442,0.00039331,30]
[423118089,1779863445000,-151.0,0.00039331,30]
[423118181,1779863446000,-208.173865,0.00039331,30]
[423118180,1779863446000,-894.265434,0.00039331,30]
[423118192,1779863446000,-208.173865,0.00039331,30]
[423118191,1779863446000,-208.173865,0.00039331,30]
[423118176,1779863446000,-219.6192,0.00039331,30]
[423118174,1779863446000,-208.173865,0.00039331,30]
[423118171,1779863446000,-208.173865,0.00039331,30]
[423118175,1779863446000,-894.265434,0.00039331,30]
[423118173,1779863446000,-219.619204,0.00039331,30]
[423118177,1779863446000,-208.173865,0.00039331,30]
[423118172,1779863446000,-894.265434,0.00039331,30]
[423118178,1779863446000,-894.265434,0.00039331,30]
[423118188,1779863446000,-208.173865,0.00039331,30]
[423118190,1779863446000,-208.173865,0.00039331,30]
[423118184,1779863446000,-208.173865,0.00039331,30]
[423118183,1779863446000,-208.173865,0.00039331,30]
[423118185,1779863446000,-208.173865,0.00039331,30]
[423118186,1779863446000,-208.173865,0.00039331,30]
[423118189,1779863446000,-208.173865,0.00039331,30]
[423118187,1779863446000,-208.173865,0.00039331,30]
[423118193,1779863446000,-301.549184,0.00039331,30]
[423118195,1779863446000,-151.0,0.00039331,30]
[423118194,1779863446000,-151.0,0.00039331,30]